bitfinex/quotes_ETHUSD_20251012
["timestamp","ask_amount","ask_price","bid_price","bid_amount"]
[1760287773634,0.001,4130.2,4129.0,0.6336]
[1760287773835,0.001,4130.2,4129.9,2.42132005]
[1760287774037,0.001,4130.2,4129.3,0.6336]
[1760287774343,0.001,4130.2,4130.1,2.42124888]
[1760287774531,0.001,4130.2,4130.1,3.05484888]
[1760287775362,0.001,4132.8,4130.2,0.6336]
[1760287775531,0.001,4132.8,4132.2,2.42001839]
[1760287775855,0.001,4132.8,4130.3,0.6336]
[1760287775856,0.001,4132.8,4129.4,2.42165384]
[1760287776020,0.001,4132.8,4129.6,2.42148817]
[1760287776231,0.001,4132.8,4127.9,0.969]
[1760287776422,0.001,4132.8,4132.2,0.1208]
[1760287776942,0.4414,4132.3,4128.7,0.1213]
[1760287777130,2.46265,4132.0,4127.8,0.1213]
[1760287777331,1.92,4131.5,4128.0,0.1213]
[1760287777533,0.6336,4131.3,4128.0,0.1213]
[1760287777861,0.37959159,4131.9,4126.7,0.2426]
[1760287777862,13.20092877,4130.6,4126.7,0.2426]
[1760287778023,0.37959159,4131.9,4126.7,0.2426]
[1760287778024,0.4404,4130.5,4126.8,0.1213]
[1760287778222,0.4404,4130.5,4127.4,2.42278756]
[1760287778422,1.92,4130.8,4127.5,2.54402769]
[1760287778621,4.3409742,4130.6,4127.5,0.1213]
[1760287778821,3.805344,4130.5,4127.6,2.42269872]
[1760287779059,1.92,4130.4,4126.8,0.1213]
[1760287779260,0.4404,4130.7,4127.0,2.4230676]
[1760287779568,0.4404,4130.7,4128.2,2.4223195]
[1760287779755,0.4404,4130.7,4127.9,0.6336]
[1760287780059,0.4404,4130.7,4126.8,2.42318503]
[1760287780060,1.92,4130.5,4127.2,0.6336]
[1760287780224,0.4404,4130.4,4125.6,2.42386503]
[1760287780425,2.42120256,4130.2,4126.9,2.42312631]
[1760287780625,0.4404,4130.4,4126.8,0.1213]
[1760287780864,0.4404,4130.4,4127.0,0.6336]
[1760287781026,0.4404,4131.2,4127.4,0.6336]
[1760287781230,0.4404,4131.2,4127.5,0.1213]
[1760287781540,0.4404,4131.2,4127.7,0.6336]
[1760287781739,0.4404,4131.2,4128.2,0.6336]
[1760287781936,0.4404,4131.2,4128.0,0.6336]
[1760287782139,0.4404,4132.2,4128.2,0.6336]
[1760287782350,0.001,4132.3,4128.4,16.396906]
[1760287782557,0.001,4132.8,4130.7,2.5536]
[1760287782863,0.001,4132.8,4129.3,0.6336]
[1760287783027,0.001,4132.8,4130.4,0.1203]
[1760287783739,0.4404,4132.7,4129.5,0.1203]
[1760287784063,0.001,4130.7,4129.6,0.6336]
[1760287784234,0.001,4130.7,4125.1,0.969]
[1760287784235,29.970838,4129.9,4125.1,0.969]
[1760287784441,28.650291,4129.6,4125.9,0.1203]
[1760287784638,0.2182,4129.7,4125.8,0.1203]
[1760287784639,2.4218381,4129.1,4125.8,0.1203]
[1760287784841,15.12092877,4129.2,4125.5,0.1223]
[1760287784842,6.113247,4128.9,4125.5,0.1223]
[1760287785173,0.4404,4129.0,4125.6,2.42388613]
[1760287785328,0.4404,4129.0,4125.7,0.1203]
[1760287785777,2.3604,4129.0,4125.6,0.1203]
[1760287786059,0.4404,4129.0,4125.6,0.1203]
[1760287786260,0.4404,4130.0,4125.7,1.92]
[1760287786427,0.001,4130.7,4127.2,0.6336]
[1760287786633,0.001,4130.7,4125.9,1.92]
[1760287786634,0.001,4130.7,4127.3,0.1203]
[1760287786851,0.001,4130.7,4127.4,0.6336]
[1760287787053,4.747866,4130.6,4130.2,0.1208]
[1760287787254,0.001,4130.7,4127.5,0.6336]
[1760287787479,0.001,4130.7,4128.1,0.6336]
[1760287787647,0.001,4130.7,4128.0,0.1203]
[1760287787831,0.001,4130.7,4128.2,2.42236325]
[1760287788379,0.001,4130.7,4128.1,0.6336]
[1760287788542,1.92,4130.5,4127.0,0.1203]
[1760287788735,0.4469,4130.6,4127.0,2.54332068]
[1760287788932,4.5178,4130.5,4127.0,0.1203]
[1760287789140,4.5178,4130.5,4123.7,13.20092877]
[1760287789141,1.92,4130.2,4123.7,13.20092877]
[1760287789371,13.20092877,4127.2,4123.4,2.66578276]
[1760287789663,5.069876,4127.8,4123.4,0.2406]
[1760287789883,1.92,4126.9,4123.4,0.1203]
[1760287790063,1.92,4126.9,4123.7,2.42495126]
[1760287790233,1.92,4126.7,4123.4,0.1203]
[1760287790432,0.6787,4127.1,4123.9,0.1203]
[1760287790695,1.92,4126.9,4123.9,0.1203]
[1760287790849,0.4578,4126.6,4122.9,2.54577346]
[1760287791168,1.92,4126.5,4122.9,0.1203]
[1760287791340,1.92,4126.5,4122.6,0.1203]
[1760287791341,1.92,4126.5,4123.5,0.1203]
[1760287791542,3.155165,4126.5,4123.5,0.1203]
[1760287791773,0.4578,4126.4,4123.4,2.42513322]
[1760287791939,0.4578,4126.4,4123.2,0.1203]
[1760287792321,2.42435996,4124.8,4117.4,28.987552]
[1760287792566,13.42182877,4125.6,4117.3,0.002]
[1760287792567,0.4578,4124.7,4119.8,2.01844]
[1760287792734,0.4578,4124.7,4119.7,0.1263]
[1760287792735,0.4578,4124.7,4122.4,2.42574424]
[1760287792936,0.4578,4124.7,4122.8,2.42551694]
[1760287793159,0.4578,4124.7,4122.8,2.42553292]
[1760287793361,0.4578,4124.7,4122.7,2.42557685]
[1760287793672,0.4578,4124.7,4121.8,0.1263]
[1760287794378,0.4578,4124.7,4121.2,0.1263]
[1760287795139,0.6787,4125.6,4122.2,2.42587213]
[1760287795476,3.086798,4125.5,4119.5,13.20092877]
[1760287795636,0.4578,4125.5,4123.0,2.42541603]
[1760287795836,1.92,4125.0,4121.5,2.4263011]
[1760287796171,1.92,4125.0,4121.7,2.42618337]
[1760287796384,0.4578,4125.4,4121.8,0.1263]
[1760287796677,0.4578,4125.4,4121.6,2.5536]
[1760287796987,0.2209,4125.6,4117.1,0.002]
[1760287796988,1.92,4123.0,4120.6,2.42682867]
[1760287797138,0.58454963,4125.3,4120.0,0.1263]
[1760287797139,0.4578,4123.5,4120.0,0.1263]
[1760287797339,0.4578,4124.3,4120.1,6.250894]
[1760287797538,0.4578,4124.3,4121.0,0.6336]
[1760287797781,0.4578,4124.3,4122.4,2.42576548]
[1760287797996,0.4578,4124.3,4121.1,0.1263]
[1760287798182,0.4578,4124.3,4121.2,0.6336]
[1760287798559,5.362681,4124.0,4120.3,0.1263]
[1760287798762,0.6787,4123.9,4121.5,2.42628514]
[1760287798992,0.6787,4123.9,4120.3,0.1263]
[1760287798993,2.363288,4123.8,4120.3,0.1263]
[1760287799206,1.92,4123.5,4120.3,0.1263]
[1760287799503,0.4578,4123.7,4121.5,2.42625842]
[1760287799693,0.4578,4123.7,4120.3,2.0463]
[1760287799868,0.4578,4123.7,4120.4,0.6336]
[1760287800077,0.4578,4123.7,4120.6,0.6336]
[1760287800300,0.4578,4124.8,4121.0,0.6336]
[1760287800507,0.38026303,4125.0,4123.1,2.4253507]
[1760287800692,0.4578,4126.6,4123.8,2.42489113]
[1760287801003,0.2209,4123.9,4120.1,0.1263]
[1760287801160,4.771154,4123.5,4118.7,0.1263]
[1760287801362,13.42182877,4123.9,4117.3,0.002]
[1760287801363,13.20092877,4120.9,4117.6,0.1263]
[1760287801579,1.92,4120.8,4117.3,0.002]
[1760287801789,1.92,4120.6,4117.7,0.1263]
[1760287802105,0.6336,4120.4,4117.3,0.002]
[1760287802505,0.4578,4120.3,4117.3,0.002]
[1760287802803,0.4578,4121.5,4117.5,1.92]
[1760287802975,0.4578,4121.5,4118.0,0.6336]
[1760287803295,0.2209,4122.1,4118.3,0.6336]
[1760287803498,13.20092877,4123.0,4118.3,0.6336]
[1760287803499,2.445934,4123.2,4118.4,2.0463]
[1760287803669,0.4578,4124.2,4119.3,4.857024]
[1760287804007,0.4578,4124.1,4119.7,1.92]
[1760287804198,0.4578,4124.0,4121.9,2.42606147]
[1760287804395,4.038446,4123.9,4119.6,2.42742013]
[1760287804706,13.20092877,4123.2,4119.6,1.92]
[1760287804896,13.20092877,4123.2,4119.3,0.971]
[1760287804897,1.92,4123.0,4119.3,0.971]
[1760287805071,0.4578,4123.1,4122.4,2.42572877]
[1760287805287,0.4578,4124.0,4120.8,2.5536]
[1760287805489,0.4578,4124.9,4120.9,0.1263]
[1760287805674,0.4578,4124.9,4120.6,0.1263]
[1760287806012,1.92,4122.9,4118.3,0.1263]
[1760287806200,0.6336,4121.9,4118.3,0.1263]
[1760287806513,0.4578,4122.4,4118.5,1.92]
[1760287806700,0.4578,4123.3,4119.7,0.6336]
[1760287806900,0.2209,4123.7,4119.5,3.06107169]
[1760287806901,0.4578,4123.6,4120.4,2.42692812]
[1760287807110,0.4578,4124.3,4121.5,2.42624329]
[1760287807416,14.17092877,4125.3,4122.2,2.42588908]
[1760287807417,0.4578,4125.3,4122.2,2.42588908]
[1760287807578,0.2209,4126.0,4122.3,0.1263]
[1760287807779,0.2209,4126.0,4122.6,0.6336]
[1760287807780,30.4578,4125.9,4122.6,0.6336]
[1760287807980,0.12673809,4125.2,4119.5,0.1263]
[1760287808290,1.92,4123.0,4117.1,0.002]
[1760287808495,13.20092877,4124.1,4119.6,0.1263]
[1760287808702,2.5987,4124.0,4119.8,2.42730229]
[1760287809040,0.6787,4124.0,4120.0,1.92]
[1760287809323,0.4578,4125.2,4120.1,0.1263]
[1760287809477,0.4578,4125.2,4121.1,2.42653026]
[1760287809677,0.4578,4125.2,4121.2,0.1263]
[1760287809906,0.2209,4126.0,4124.1,2.42473849]
[1760287810086,0.2209,4126.0,4117.5,2.080176]
[1760287810087,30.0,4124.1,4117.5,2.080176]
[1760287810292,0.4578,4124.0,4118.9,6.53164]
[1760287810492,0.6787,4123.9,4119.0,1.0973]
[1760287810708,0.6787,4123.9,4121.2,2.42647221]
[1760287810894,4.389027,4123.8,4120.2,0.1263]
[1760287811110,4.622008,4123.6,4119.8,2.42730229]
[1760287811312,4.80281227,4123.7,4119.7,2.42733713]
[1760287811313,0.6336,4123.4,4119.7,2.42736121]
[1760287811598,0.4578,4123.3,4121.1,2.42650958]
[1760287811834,0.4578,4123.2,4119.5,0.1263]
[1760287812120,0.4578,4123.2,4120.9,2.42660382]
[1760287812437,0.4578,4123.2,4119.7,2.42736121]
[1760287812607,0.4578,4123.1,4119.5,0.1263]
[1760287812813,4.723206,4123.0,4119.0,0.971]
[1760287813020,0.6336,4122.4,4119.0,0.971]
[1760287813245,2.5536,4122.2,4119.0,0.971]
[1760287813405,0.4578,4122.1,4119.0,0.971]
[1760287813738,0.4578,4122.0,4118.8,2.42789161]
[1760287813939,1.92,4121.7,4118.1,0.971]
[1760287814243,0.4578,4121.6,4117.9,1.92]
[1760287814543,0.6336,4121.5,4117.9,2.42842225]
[1760287814846,0.6336,4121.5,4117.8,0.1263]
[1760287814847,2.42664755,4121.0,4117.3,0.002]
[1760287815021,2.5536,4120.4,4117.3,0.002]
[1760287815522,0.4578,4120.5,4117.7,2.4285402]
[1760287815841,0.4578,4121.4,4118.2,2.42824534]
[1760287816156,0.4578,4121.3,4117.8,0.1263]
[1760287816463,0.4578,4121.3,4116.9,0.002]
[1760287816464,1.92,4121.1,4116.9,0.002]
[1760287816741,0.6336,4120.6,4116.9,0.002]
[1760287816940,0.6336,4119.6,4116.9,0.002]
[1760287817114,0.6336,4120.2,4117.2,2.42882927]
[1760287817316,0.4578,4120.5,4117.8,2.42843625]
[1760287817317,0.4578,4119.5,4117.8,2.42843625]
[1760287817639,0.2209,4120.0,4117.4,2.42871715]
[1760287817840,0.6336,4120.3,4117.1,0.1283]
[1760287818037,0.6336,4120.3,4117.4,2.42871715]
[1760287818243,0.4343,4120.2,4117.2,1.92]
[1760287818461,0.4343,4120.2,4117.7,1.92]
[1760287818609,0.2273,4121.6,4117.9,0.6336]
[1760287818951,0.2273,4121.6,4117.1,0.002]
[1760287818952,0.4343,4121.5,4118.2,1.92]
[1760287819108,0.4343,4121.5,4120.3,2.42695563]
[1760287819311,13.20092877,4122.9,4119.0,2.42774025]
[1760287819312,0.4343,4122.3,4119.0,0.1263]
[1760287819548,0.2273,4122.6,4119.1,0.6336]
[1760287819845,0.2273,4122.6,4117.6,1.92]
[1760287819846,0.4343,4122.7,4119.2,0.1263]
[1760287820013,0.4343,4122.7,4118.3,0.1263]
[1760287820014,5.07035,4122.5,4118.3,0.1263]
[1760287820214,2.500107,4121.5,4117.5,0.002]
[1760287820434,2.5536,4121.0,4118.2,2.42822816]
[1760287820632,4.753679,4120.6,4117.5,0.002]
[1760287820838,1.92,4119.6,4117.5,0.002]
[1760287821047,2.5536,4119.6,4117.5,0.002]
[1760287821246,0.6336,4119.4,4117.5,0.002]
[1760287821417,0.6336,4120.0,4117.5,0.002]
[1760287821619,0.4343,4120.1,4118.5,2.42803979]
[1760287821837,0.4343,4120.1,4118.6,2.42795339]
[1760287822038,0.4343,4120.1,4118.2,2.42819473]
[1760287822252,0.2273,4120.9,4117.7,0.6336]
[1760287822432,0.2273,4120.9,4117.5,0.002]
[1760287822433,0.4343,4122.2,4118.1,1.92]
[1760287822760,0.4343,4122.2,4119.4,2.42750434]
[1760287822970,0.4343,4122.2,4119.2,1.92]
[1760287823122,0.4343,4122.2,4119.0,0.6336]
[1760287823318,0.4343,4122.2,4120.4,2.42689869]
[1760287823562,0.4343,4122.2,4118.9,0.6336]
[1760287823772,0.4343,4122.2,4119.7,2.42733867]
[1760287823965,0.4343,4122.2,4119.1,1.92]
[1760287824257,0.4343,4122.2,4119.3,0.6336]
[1760287824558,13.20092877,4120.1,4117.5,0.002]
[1760287824722,0.4343,4122.1,4117.5,0.002]
[1760287824723,0.2273,4119.4,4117.5,0.002]
[1760287824922,0.6336,4119.3,4117.5,0.002]
[1760287825123,0.6336,4118.7,4117.5,0.002]
[1760287825347,0.6336,4118.5,4117.5,0.002]
[1760287825548,2.5536,4118.3,4117.5,0.002]
[1760287825826,1.0658,4118.4,4117.5,0.002]
[1760287826039,2.384676,4117.5,4117.1,0.002]
[1760287826334,0.6336,4117.3,4113.4,0.4683]
[1760287826552,0.6336,4116.9,4113.4,0.4683]
[1760287826724,2.5536,4116.3,4113.0,2.43129454]
[1760287826929,2.5536,4115.9,4112.4,0.4683]
[1760287827234,0.6336,4115.7,4112.4,0.4683]
[1760287827436,0.6336,4115.7,4109.9,2.43312564]
[1760287827437,5.610317,4113.4,4105.5,0.38103979]
[1760287827634,13.20092877,4113.5,4105.5,0.38103979]
[1760287827635,0.6495,4113.3,4108.6,2.639146]
[1760287827845,0.6495,4113.3,4108.5,0.2199]
[1760287827846,0.6495,4113.3,4108.9,2.43374139]
[1760287828036,0.4245,4113.3,4109.2,2.43356371]
[1760287828370,1.0561,4114.1,4109.5,4.723133]
[1760287828528,1.0561,4114.1,4111.1,2.43239505]
[1760287828733,13.20092877,4113.6,4109.6,2.4332848]
[1760287828948,2.5536,4113.3,4110.5,2.43273901]
[1760287829149,3.08334256,4114.1,4109.3,0.4683]
[1760287829150,3.63804,4113.0,4109.3,0.4683]
[1760287829361,2.3425,4112.9,4109.3,0.4683]
[1760287829564,0.6336,4112.8,4109.3,0.4683]
[1760287829766,2.3425,4112.9,4109.3,0.4683]
[1760287829931,0.4225,4112.9,4109.3,0.4683]
[1760287830265,2.43001797,4115.2,4109.3,0.4683]
[1760287830266,0.4223,4115.0,4110.1,13.20092877]
[1760287830438,0.4223,4115.0,4112.5,2.43158318]
[1760287830645,0.4223,4115.0,4112.2,0.4683]
[1760287830836,0.4223,4115.0,4112.3,2.4317292]
[1760287831042,0.4223,4115.0,4112.4,1.92]
[1760287831268,0.38100296,4117.1,4112.7,0.6336]
[1760287831468,0.38100296,4117.1,4113.6,2.43096071]
[1760287831763,0.422,4117.4,4113.9,4.35078344]
[1760287831968,0.422,4117.4,4114.0,2.3883]
[1760287832272,0.422,4117.4,4114.1,0.6336]
[1760287832428,0.422,4117.4,4114.1,2.43066527]
[1760287832629,0.422,4117.4,4115.5,2.42981955]
[1760287832961,13.20092877,4115.6,4108.2,0.99999999]
[1760287833139,13.20092877,4114.4,4110.5,0.4683]
[1760287833339,0.972,4117.4,4110.5,0.4683]
[1760287833539,26.003402,4115.4,4110.5,0.4683]
[1760287833861,2.5536,4114.3,4110.5,0.4683]
[1760287834063,0.6336,4114.0,4110.5,0.4683]
[1760287834267,2.5536,4113.6,4110.5,0.4683]
[1760287834466,0.6336,4113.2,4109.7,2.43325453]
[1760287834767,0.4343,4113.5,4108.2,2.43411618]
[1760287834768,13.20092877,4111.6,4108.2,2.43411618]
[1760287834974,10.533806,4112.9,4105.8,0.972]
[1760287834975,13.20092877,4110.1,4107.8,2.43434655]
[1760287835273,0.6594,4111.5,4106.5,0.1263]
[1760287835274,0.6336,4111.4,4107.9,0.4683]
[1760287835492,0.6336,4111.4,4106.5,0.1263]
[1760287835493,4.98610455,4111.0,4106.5,0.1263]
[1760287835799,13.20092877,4111.7,4106.5,0.1263]
[1760287835800,2.43281913,4110.5,4107.1,2.9030809]
[1760287836012,0.6336,4109.6,4105.8,0.972]
[1760287836310,2.5536,4108.6,4106.6,0.12718362]
[1760287836462,1.92,4107.6,4106.6,0.12718362]
[1760287836661,1.92,4107.6,4103.4,0.1583]
[1760287836662,0.6336,4107.5,4103.9,4.35670654]
[1760287836897,0.6336,4107.5,4106.6,0.1272226]
[1760287837194,0.6336,4107.5,4104.3,2.43640992]
[1760287837195,0.6336,4108.6,4106.5,2.43515762]
[1760287837401,0.6336,4108.6,4104.8,2.43617228]
[1760287837402,0.6336,4109.6,4106.6,0.12719634]
[1760287837613,0.4343,4109.7,4106.8,2.43498587]
[1760287837908,0.973,4113.3,4109.3,0.1216]
[1760287837909,0.1216,4110.0,4109.3,0.1216]
[1760287838077,0.4322,4110.5,4107.2,3.06834873]
[1760287838279,0.35409323,4112.9,4107.0,0.4683]
[1760287838280,0.4322,4110.4,4107.0,0.4683]
[1760287838598,0.4322,4111.6,4107.8,2.5536]
[1760287838760,0.2273,4112.5,4108.5,3.649211]
[1760287838761,0.4302,4112.5,4108.5,3.649211]
[1760287838959,0.4302,4112.5,4108.0,0.6336]
[1760287838960,0.4302,4112.5,4108.6,0.4683]
[1760287839159,0.4302,4112.5,4108.7,4.35384131]
[1760287839461,0.4302,4112.5,4109.4,0.6336]
[1760287839676,0.4302,4113.4,4110.2,0.6336]
[1760287839964,0.4302,4113.9,4110.5,2.43279406]
[1760287840162,0.4302,4113.9,4109.8,2.43320695]
[1760287840163,0.4281,4114.9,4111.0,1.92]
[1760287840363,0.38110572,4116.2,4111.3,2.5536]
[1760287840577,0.38110572,4116.2,4112.0,2.43190661]
[1760287840578,0.4343,4115.9,4112.0,2.43190661]
[1760287840873,0.4343,4115.9,4112.1,0.4683]
[1760287841072,0.4343,4115.9,4112.8,0.6336]
[1760287841294,0.4281,4116.8,4113.4,1.92]
[1760287841604,0.2273,4116.7,4112.9,1.4413]
[1760287841774,0.6554,4116.7,4114.1,2.43065486]
[1760287841971,0.6554,4116.7,4112.9,1.4413]
[1760287841972,6.571457,4116.6,4112.9,1.4413]
[1760287842182,0.4281,4116.5,4112.9,0.973]
[1760287842383,0.4281,4116.5,4113.0,1.1019]
[1760287842692,0.4281,4116.5,4113.4,2.43107891]
[1760287842900,0.427,4116.5,4113.3,0.4683]
[1760287843101,0.3694,4116.5,4114.9,2.43013809]
[1760287843303,0.3694,4116.5,4113.3,0.4683]
[1760287843607,30.0,4116.3,4112.0,1.488337]
[1760287843906,1.92,4116.2,4112.0,1.488337]
[1760287844091,1.92,4116.0,4112.1,0.4281]
[1760287844291,1.92,4116.0,4112.3,2.43168876]
[1760287844601,1.92,4116.8,4113.0,2.43131044]
[1760287844803,1.92,4116.6,4112.8,0.4281]
[1760287844970,0.2256,4116.9,4114.0,2.43071731]
[1760287845171,0.2256,4116.9,4112.0,2.461337]
[1760287845172,0.3146,4116.8,4114.6,2.43035054]
[1760287845409,0.3146,4116.8,4113.6,0.4281]
[1760287845608,0.3146,4117.7,4113.7,2.43090162]
[1760287845811,0.3146,4117.7,4113.6,0.4281]
[1760287846010,0.3146,4117.6,4113.6,0.4281]
[1760287846215,5.980788,4117.5,4113.8,2.43079748]
[1760287846381,1.92,4117.0,4113.6,0.4281]
[1760287846582,4.65432913,4117.3,4113.6,0.4281]
[1760287846797,2.42932873,4116.4,4113.6,0.4281]
[1760287846998,0.3146,4117.2,4110.4,2.43284129]
[1760287846999,1.92,4116.1,4112.6,0.4281]
[1760287847180,1.92,4115.8,4111.8,0.4281]
[1760287847372,1.92,4115.2,4110.8,0.4571]
[1760287847593,5.935408,4114.8,4110.8,0.4571]
[1760287847771,2.5536,4114.4,4110.8,0.4571]
[1760287847971,0.6336,4113.7,4110.8,0.4571]
[1760287848174,0.1208,4112.8,4112.1,0.1208]
[1760287848606,0.3167,4113.0,4110.2,0.973]
[1760287848820,0.1208,4112.8,4112.1,0.1208]
[1760287848974,0.6336,4113.9,4110.8,0.4571]
[1760287849171,5.319454,4113.9,4110.2,0.973]
[1760287849375,0.6336,4113.7,4110.3,2.43289389]
[1760287849602,1.0759,4113.6,4110.2,0.973]
[1760287849775,0.6336,4112.6,4110.2,0.973]
[1760287849972,0.6336,4112.4,4110.2,0.973]
[1760287850272,0.4423,4112.3,4110.2,0.973]
[1760287850491,0.4423,4112.2,4110.2,0.973]
[1760287850931,0.4423,4113.6,4110.8,2.43255867]
[1760287851236,0.4423,4113.6,4110.2,0.973]
[1760287851405,0.6336,4113.5,4110.8,0.4571]
[1760287851604,0.6336,4113.5,4110.2,0.973]
[1760287851605,0.6336,4112.9,4110.2,0.973]
[1760287851813,2.5536,4112.5,4108.4,0.4571]
[1760287852027,2.5536,4112.5,4107.8,0.975]
[1760287852028,8.371445,4112.2,4108.6,2.43391909]
[1760287852231,0.4345,4112.4,4109.6,2.43327914]
[1760287852232,0.6336,4112.3,4109.6,2.43327914]
[1760287852532,0.6336,4112.3,4108.7,0.4571]
[1760287852733,0.6336,4111.7,4108.7,0.4571]
[1760287852946,2.5536,4112.1,4108.7,0.4571]
[1760287852947,0.6336,4111.5,4108.7,0.4571]
[1760287853233,0.6336,4111.5,4109.4,2.43344328]
[1760287853443,2.43175047,4112.3,4107.9,0.5834]
[1760287853444,0.4459,4112.5,4109.1,0.4571]
[1760287853622,0.4459,4112.5,4109.3,0.6336]
[1760287853820,0.4459,4112.5,4109.2,2.43356371]
[1760287853821,0.4459,4113.3,4109.5,3.06698605]
[1760287854028,0.4459,4113.3,4110.0,0.6336]
[1760287854209,0.4459,4113.3,4110.2,0.6336]
[1760287854542,0.35409323,4114.9,4109.6,0.6336]
[1760287854543,0.4459,4113.2,4109.6,0.6336]
[1760287854695,0.6336,4112.7,4108.8,0.4571]
[1760287854893,0.6336,4112.5,4108.9,2.43374139]
[1760287855104,0.6336,4112.5,4109.7,2.43326079]
[1760287855105,0.6336,4112.3,4109.7,2.43326079]
[1760287855306,0.6336,4112.3,4108.9,2.43374139]
[1760287855307,0.6336,4112.3,4108.9,1.92]
[1760287855508,0.4459,4112.6,4108.6,2.43388682]
[1760287855509,0.4459,4112.6,4109.0,0.4571]
[1760287855715,0.2171,4113.6,4109.1,0.6336]
[1760287855895,0.2171,4113.6,4109.3,2.43350448]
[1760287855896,0.4459,4113.5,4109.3,2.43350448]
[1760287856239,0.4459,4113.5,4109.1,1.92]
[1760287856240,0.4459,4113.5,4109.9,0.6336]
[1760287856426,0.4459,4113.5,4110.1,0.6336]
[1760287856613,0.4459,4113.5,4110.5,0.6336]
[1760287856796,0.4429,4114.9,4111.2,0.6336]
[1760287856998,0.4429,4114.9,4110.6,0.4571]
[1760287856999,0.001,4113.3,4110.6,0.4571]
[1760287857299,0.6336,4113.1,4110.1,2.43502978]
[1760287857498,0.6336,4113.1,4110.7,2.43266598]
[1760287857728,0.6336,4113.1,4110.9,2.43251964]
[1760287857933,2.5536,4112.3,4110.1,0.002]
[1760287858229,0.44,4112.2,4110.1,0.002]
[1760287858598,0.44,4113.1,4110.1,0.6356]
[1760287858798,0.44,4113.0,4110.2,0.4571]
[1760287859021,0.1208,4112.4,4111.7,0.1216]
[1760287859200,0.44,4113.7,4111.6,2.43212072]
[1760287859395,0.44,4113.7,4110.3,2.5536]
[1760287859396,0.1208,4113.5,4112.3,0.1208]
[1760287859600,0.44,4113.7,4113.2,0.1208]
[1760287859899,0.1208,4113.4,4112.8,0.1208]
[1760287860123,0.1208,4113.4,4110.4,0.4571]
[1760287860124,0.44,4113.7,4110.4,0.4571]
[1760287860296,0.44,4113.2,4110.4,0.4571]
[1760287860502,6.066325,4112.9,4109.3,0.4571]
[1760287860704,4.98516648,4112.6,4108.5,0.4571]
[1760287860899,0.6336,4112.5,4108.5,0.4571]
[1760287861100,1.92,4111.8,4108.5,0.4571]
[1760287861323,0.6336,4111.8,4108.7,2.43380431]
[1760287861525,0.6336,4111.4,4108.5,0.4571]
[1760287861728,0.6336,4111.1,4108.5,0.4571]
[1760287861934,0.4459,4112.5,4110.1,0.4591]
[1760287862125,30.0,4112.4,4107.8,0.002]
[1760287862332,2.43320842,4109.8,4107.8,0.002]
[1760287862630,0.6336,4109.2,4107.8,0.002]
[1760287862828,0.6336,4108.7,4107.8,0.002]
[1760287863033,0.6336,4109.0,4107.8,0.002]
[1760287863432,0.2171,4110.2,4107.8,0.002]
[1760287863605,0.6336,4109.9,4107.8,0.002]
[1760287864032,0.6336,4109.9,4107.9,2.43432774]
[1760287864208,0.6336,4109.9,4107.8,0.002]
[1760287864752,0.4459,4111.4,4108.0,0.6336]
[1760287864935,0.4459,4111.4,4108.2,0.6336]
[1760287865109,0.4459,4111.4,4108.3,1.92]
[1760287865436,0.4459,4111.4,4108.5,1.92]
[1760287865638,0.4459,4111.4,4108.6,1.92]
[1760287865806,0.4459,4111.4,4108.5,0.6336]
[1760287866008,0.4459,4111.4,4108.5,2.43397833]
[1760287866205,0.4459,4111.4,4108.4,0.4571]
[1760287866454,0.4459,4111.4,4108.1,3.0401]
[1760287866455,0.6336,4110.8,4108.1,0.974]
[1760287866607,1.92,4110.1,4107.8,0.002]
[1760287866806,0.6336,4109.6,4107.8,0.002]
[1760287867014,1.92,4109.2,4107.8,0.002]
[1760287867207,0.6336,4109.0,4107.8,0.002]
[1760287867407,0.6336,4108.7,4107.8,0.002]
[1760287867622,3.06736795,4108.9,4107.0,0.002]
[1760287867623,0.6336,4107.8,4107.0,0.002]
[1760287868109,2.3659,4108.6,4107.0,0.002]
[1760287868110,0.6336,4108.5,4107.0,0.002]
[1760287869055,0.6336,4108.3,4107.0,0.002]
[1760287869350,0.4459,4108.4,4098.2,1.25402259]
[1760287869351,12.03974554,4107.5,4098.2,1.25402259]
[1760287869654,0.974,4108.2,4102.9,2.89436833]
[1760287869655,0.6336,4107.7,4102.9,2.89436833]
[1760287869951,0.1216,4105.5,4104.8,0.1216]
[1760287870133,0.6336,4105.4,4102.3,0.002]
[1760287870310,0.6336,4105.4,4102.6,0.1216]
[1760287870311,0.6336,4104.7,4102.6,0.1216]
[1760287870511,1.92,4103.9,4102.3,0.002]
[1760287870750,0.6336,4102.9,4102.3,0.002]
[1760287871109,0.6336,4102.5,4102.3,0.002]
[1760287871360,0.4411,4102.8,4102.3,0.002]
[1760287871649,0.4391,4103.3,4102.3,0.002]
[1760287871946,0.2171,4103.8,4102.3,0.002]
[1760287871947,1.0727,4102.4,4102.3,0.002]
[1760287872247,1.0727,4102.4,4098.5,2.43987704]
[1760287872248,2.541,4100.7,4091.9,2.44381843]
[1760287872453,12.03974554,4099.2,4093.0,2.44315632]
[1760287872623,10.31603,4098.9,4096.4,0.12758705]
[1760287872964,6.672796,4098.5,4094.5,0.4571]
[1760287873168,0.6336,4098.1,4094.5,0.4571]
[1760287873378,0.6336,4098.7,4094.5,0.4571]
[1760287873678,0.6336,4097.9,4094.5,0.4571]